[Event "Late-Titled-Tuesday-Blitz-May-14-2024"]
[Site "Chess.com"]
[Date "2024.05.14"]
[Round "3"]
[White "juancruzarias"]
[Black "jup1978"]
[Result "1/2-1/2"]
[WhiteElo "2667"]
[BlackElo "2489"]
[TimeControl "180+1"]
[EndTime "14:30:52 PDT"]
[Termination "Game drawn - timeout vs insufficient material"]

1. d4 {[%clk 0:03:00.9]} 1... d5 {[%clk 0:02:59.6]} 2. Nf3 {[%clk 0:03:01.2]}
2... e6 {[%clk 0:02:59.2]} 3. e3 {[%clk 0:03:01.5]} 3... Nf6 {[%clk 0:02:57.5]}
4. Bd3 {[%clk 0:03:02.1]} 4... c5 {[%clk 0:02:51.3]} 5. c3 {[%clk 0:03:02.4]}
5... Be7 {[%clk 0:02:49]} 6. O-O {[%clk 0:03:02.7]} 6... O-O {[%clk 0:02:44.8]}
7. Nbd2 {[%clk 0:03:03.3]} 7... b6 {[%clk 0:02:45.3]} 8. Qe2 {[%clk 0:03:02.5]}
8... a5 {[%clk 0:02:44.2]} 9. a4 {[%clk 0:02:49.8]} 9... Ba6 {[%clk 0:02:41.7]}
10. Bxa6 {[%clk 0:02:49.5]} 10... Nxa6 {[%clk 0:02:42.6]} 11. b3 {[%clk
0:02:50.1]} 11... cxd4 {[%clk 0:02:38.7]} 12. exd4 {[%clk 0:02:47.6]} 12... Qc7
{[%clk 0:02:34.5]} 13. Bb2 {[%clk 0:02:47.7]} 13... Nb8 {[%clk 0:02:33.6]} 14.
Rac1 {[%clk 0:02:43.8]} 14... Rc8 {[%clk 0:02:27.5]} 15. Rfe1 {[%clk 0:02:43.4]}
15... Nbd7 {[%clk 0:02:17.5]} 16. g3 {[%clk 0:02:24.9]} 16... Rab8 {[%clk
0:02:14.4]} 17. h4 {[%clk 0:02:16.7]} 17... Qb7 {[%clk 0:02:10.5]} 18. Ng5
{[%clk 0:02:10]} 18... Nf8 {[%clk 0:01:56.3]} 19. c4 {[%clk 0:01:51.9]} 19...
dxc4 {[%clk 0:01:54.4]} 20. Nxc4 {[%clk 0:01:46.9]} 20... h6 {[%clk 0:01:49.6]}
21. Nf3 {[%clk 0:01:46]} 21... b5 {[%clk 0:01:35.5]} 22. Nce5 {[%clk 0:01:40.5]}
22... bxa4 {[%clk 0:01:30.6]} 23. Rxc8 {[%clk 0:01:35.3]} 23... Rxc8 {[%clk
0:01:31.5]} 24. bxa4 {[%clk 0:01:35.3]} 24... Qb3 {[%clk 0:01:17.7]} 25. Qb5
{[%clk 0:01:05.9]} 25... Qxb5 {[%clk 0:01:04.2]} 26. axb5 {[%clk 0:01:06.8]}
26... Rb8 {[%clk 0:01:03.8]} 27. Nc6 {[%clk 0:01:07.2]} 27... Rb7 {[%clk
0:01:00.5]} 28. Nxe7+ {[%clk 0:01:04.1]} 28... Rxe7 {[%clk 0:01:01.4]} 29. Ra1
{[%clk 0:01:04.6]} 29... Ra7 {[%clk 0:00:57.8]} 30. Ra4 {[%clk 0:01:00.4]} 30...
Nd5 {[%clk 0:00:56.8]} 31. Ne5 {[%clk 0:00:58.4]} 31... Nb6 {[%clk 0:00:47.4]}
32. Ra1 {[%clk 0:00:58.5]} 32... a4 {[%clk 0:00:47.5]} 33. Ba3 {[%clk
0:00:59.1]} 33... Nfd7 {[%clk 0:00:46.7]} 34. Nc6 {[%clk 0:00:58.8]} 34... Rc7
{[%clk 0:00:43.8]} 35. Bd6 {[%clk 0:00:57.6]} 35... Rb7 {[%clk 0:00:40.6]} 36.
Bc5 {[%clk 0:00:30.9]} 36... Nd5 {[%clk 0:00:36.3]} 37. Rxa4 {[%clk 0:00:28.3]}
37... Nxc5 {[%clk 0:00:35.7]} 38. dxc5 {[%clk 0:00:21.3]} 38... Rxb5 {[%clk
0:00:36.2]} 39. Ra5 {[%clk 0:00:16.3]} 39... Rxa5 {[%clk 0:00:34.5]} 40. Nxa5
{[%clk 0:00:17.2]} 40... Kf8 {[%clk 0:00:34.8]} 41. Kg2 {[%clk 0:00:17.6]} 41...
Ke8 {[%clk 0:00:35.2]} 42. Kf3 {[%clk 0:00:18.3]} 42... Kd7 {[%clk 0:00:35.5]}
43. Ke4 {[%clk 0:00:19]} 43... Nf6+ {[%clk 0:00:33.2]} 44. Kf4 {[%clk
0:00:18.9]} 44... Nd5+ {[%clk 0:00:32.4]} 45. Ke4 {[%clk 0:00:19.2]} 45... f6
{[%clk 0:00:32.9]} 46. Kd4 {[%clk 0:00:18.4]} 46... Kc7 {[%clk 0:00:31.5]} 47.
f3 {[%clk 0:00:14.9]} 47... Nb4 {[%clk 0:00:27.8]} 48. Nc4 {[%clk 0:00:14.6]}
48... Kc6 {[%clk 0:00:23.8]} 49. Nd6 {[%clk 0:00:15]} 49... Nc2+ {[%clk
0:00:20.9]} 50. Kd3 {[%clk 0:00:14.1]} 50... Nb4+ {[%clk 0:00:18.9]} 51. Kc4
{[%clk 0:00:12.4]} 51... Nd5 {[%clk 0:00:18.7]} 52. Ne8 {[%clk 0:00:12.4]} 52...
g5 {[%clk 0:00:18.5]} 53. h5 {[%clk 0:00:12]} 53... f5 {[%clk 0:00:13.7]} 54.
Nd6 {[%clk 0:00:09.8]} 54... g4 {[%clk 0:00:08.2]} 55. fxg4 {[%clk 0:00:09.8]}
55... fxg4 {[%clk 0:00:09.1]} 56. Nf7 {[%clk 0:00:10.3]} 56... Ne3+ {[%clk
0:00:09.2]} 57. Kd3 {[%clk 0:00:08.2]} 57... Nf5 {[%clk 0:00:10.1]} 58. Ne5+
{[%clk 0:00:05.5]} 58... Kxc5 {[%clk 0:00:09]} 59. Nxg4 {[%clk 0:00:05]} 59...
Nxg3 {[%clk 0:00:09.3]} 60. Nxh6 {[%clk 0:00:05.4]} 60... Nxh5 {[%clk
0:00:09.9]} 61. Ke4 {[%clk 0:00:05.5]} 61... Kd6 {[%clk 0:00:09.2]} 62. Nf5+
{[%clk 0:00:05.7]} 62... Kd7 {[%clk 0:00:07.2]} 63. Nd4 {[%clk 0:00:05.9]} 63...
Nf6+ {[%clk 0:00:04.6]} 64. Ke5 {[%clk 0:00:05.8]} 64... Ng4+ {[%clk 0:00:04.8]}
65. Kf4 {[%clk 0:00:05]} 65... e5+ {[%clk 0:00:04.4]} 66. Ke4 {[%clk 0:00:05.2]}
66... Kd6 {[%clk 0:00:01.5]} 67. Nf5+ {[%clk 0:00:04.5]} 67... Ke6 {[%clk
0:00:00.9]} 68. Ng3 {[%clk 0:00:05.4]} 1/2-1/2

[Event "Late-Titled-Tuesday-Blitz-May-14-2024"]
[Site "Chess.com"]
[Date "2024.05.14"]
[Round "3"]
[White "ameetghasi100"]
[Black "sergoy"]
[Result "1-0"]
[WhiteElo "2782"]
[BlackElo "3001"]
[TimeControl "180+1"]
[EndTime "14:30:53 PDT"]
[Termination "ameetghasi100 won by checkmate"]

1. g3 {[%clk 0:02:42.4]} 1... d5 {[%clk 0:02:57.3]} 2. Bg2 {[%clk 0:02:43.3]}
2... e5 {[%clk 0:02:57.6]} 3. d3 {[%clk 0:02:43]} 3... Nc6 {[%clk 0:02:55.7]} 4.
Nf3 {[%clk 0:02:42.8]} 4... g6 {[%clk 0:02:55.2]} 5. O-O {[%clk 0:02:41.8]} 5...
Bg7 {[%clk 0:02:55.4]} 6. e4 {[%clk 0:02:40.2]} 6... Nge7 {[%clk 0:02:55.8]} 7.
Nc3 {[%clk 0:02:33.5]} 7... d4 {[%clk 0:02:21]} 8. Ne2 {[%clk 0:02:10.9]} 8...
O-O {[%clk 0:02:20.8]} 9. c3 {[%clk 0:02:09.2]} 9... Bg4 {[%clk 0:02:04.5]} 10.
cxd4 {[%clk 0:01:51.9]} 10... Bxf3 {[%clk 0:02:04.4]} 11. Bxf3 {[%clk
0:01:52.7]} 11... Nxd4 {[%clk 0:02:05]} 12. Nxd4 {[%clk 0:01:44.4]} 12... Qxd4
{[%clk 0:02:05.9]} 13. Be3 {[%clk 0:01:44.9]} 13... Qd7 {[%clk 0:02:02.9]} 14.
Bg4 {[%clk 0:01:35.4]} 14... Qd6 {[%clk 0:01:50]} 15. Rc1 {[%clk 0:01:34.6]}
15... b6 {[%clk 0:01:49.8]} 16. a3 {[%clk 0:01:21.9]} 16... c5 {[%clk
0:01:48.7]} 17. Qa4 {[%clk 0:01:17.8]} 17... a5 {[%clk 0:01:46.4]} 18. Qb5
{[%clk 0:01:13.9]} 18... Nc6 {[%clk 0:01:42.5]} 19. Qxb6 {[%clk 0:01:09.5]}
19... Rfd8 {[%clk 0:01:27.2]} 20. Rxc5 {[%clk 0:00:35.6]} 20... Nd4 {[%clk
0:01:26.7]} 21. Qxd6 {[%clk 0:00:35.8]} 21... Rxd6 {[%clk 0:01:27.6]} 22. Rfc1
{[%clk 0:00:35]} 22... h5 {[%clk 0:01:27.7]} 23. Rc8+ {[%clk 0:00:33.9]} 23...
Rxc8 {[%clk 0:01:27.5]} 24. Rxc8+ {[%clk 0:00:34.8]} 24... Kh7 {[%clk
0:01:27.4]} 25. Bd1 {[%clk 0:00:33.4]} 25... Rb6 {[%clk 0:01:25.6]} 26. Bxd4
{[%clk 0:00:30.5]} 26... exd4 {[%clk 0:01:25.6]} 27. b3 {[%clk 0:00:29.2]} 27...
Bf6 {[%clk 0:01:20.3]} 28. f4 {[%clk 0:00:27.2]} 28... Kg7 {[%clk 0:01:19.8]}
29. e5 {[%clk 0:00:26.9]} 29... Be7 {[%clk 0:01:20.1]} 30. a4 {[%clk 0:00:26.1]}
30... Bb4 {[%clk 0:01:19.2]} 31. Bf3 {[%clk 0:00:26.2]} 31... f6 {[%clk
0:01:00.9]} 32. Rc7+ {[%clk 0:00:24.5]} 32... Kh6 {[%clk 0:00:57.4]} 33. Bd5
{[%clk 0:00:24]} 33... fxe5 {[%clk 0:00:57.7]} 34. fxe5 {[%clk 0:00:24.9]} 34...
Kg5 {[%clk 0:00:58.3]} 35. Rf7 {[%clk 0:00:15.4]} 35... h4 {[%clk 0:00:58.4]}
36. Kg2 {[%clk 0:00:15.1]} 36... hxg3 {[%clk 0:00:58.3]} 37. hxg3 {[%clk
0:00:16]} 37... Rb8 {[%clk 0:00:56.9]} 38. e6 {[%clk 0:00:15.8]} 38... Rd8
{[%clk 0:00:54.5]} 39. Bc4 {[%clk 0:00:15.2]} 39... Rh8 {[%clk 0:00:51.5]} 40.
Rf4 {[%clk 0:00:14.6]} 40... Bc5 {[%clk 0:00:48.5]} 41. Re4 {[%clk 0:00:14.7]}
41... Kf6 {[%clk 0:00:47.3]} 42. Rf4+ {[%clk 0:00:14.9]} 42... Kg5 {[%clk
0:00:46.1]} 43. Rf7 {[%clk 0:00:14.6]} 43... Re8 {[%clk 0:00:39.8]} 44. Kf3
{[%clk 0:00:14.4]} 44... Rb8 {[%clk 0:00:25.2]} 45. Rf4 {[%clk 0:00:12.3]} 45...
Re8 {[%clk 0:00:22.3]} 46. Ke4 {[%clk 0:00:11.9]} 46... Bd6 {[%clk 0:00:22.8]}
47. Rf1 {[%clk 0:00:10.3]} 47... Kg4 {[%clk 0:00:17.4]} 48. Kxd4 {[%clk
0:00:09.1]} 48... g5 {[%clk 0:00:17.9]} 49. Kd5 {[%clk 0:00:07.3]} 49... Bxg3
{[%clk 0:00:18.1]} 50. Bb5 {[%clk 0:00:07.1]} 50... Re7 {[%clk 0:00:15.4]} 51.
Rf7 {[%clk 0:00:04.8]} 51... Rc7 {[%clk 0:00:04.8]} 52. Rxc7 {[%clk 0:00:04.1]}
52... Bxc7 {[%clk 0:00:05.7]} 53. e7 {[%clk 0:00:04.2]} 53... Kf3 {[%clk
0:00:06.4]} 54. e8=Q {[%clk 0:00:04.7]} 54... Bf4 {[%clk 0:00:07.2]} 55. Qe4+
{[%clk 0:00:05.1]} 55... Kg3 {[%clk 0:00:07.7]} 56. d4 {[%clk 0:00:05.1]} 56...
g4 {[%clk 0:00:08]} 57. Bc6 {[%clk 0:00:04.4]} 57... Bc7 {[%clk 0:00:07.3]} 58.
Ke6 {[%clk 0:00:05.3]} 58... Kh4 {[%clk 0:00:07.4]} 59. Qg2 {[%clk 0:00:05.8]}
59... g3 {[%clk 0:00:07.6]} 60. d5 {[%clk 0:00:06.2]} 60... Kg5 {[%clk
0:00:07.5]} 61. d6 {[%clk 0:00:06.6]} 61... Bxd6 {[%clk 0:00:08.2]} 62. Kxd6
{[%clk 0:00:06.9]} 62... Kf4 {[%clk 0:00:09.1]} 63. Kc5 {[%clk 0:00:07.3]} 63...
Ke3 {[%clk 0:00:07.3]} 64. Kb6 {[%clk 0:00:06.9]} 64... Kd4 {[%clk 0:00:07.8]}
65. Kxa5 {[%clk 0:00:06.4]} 65... Kc5 {[%clk 0:00:07.6]} 66. Qxg3 {[%clk
0:00:06.7]} 66... Kd4 {[%clk 0:00:07.3]} 67. Qd6+ {[%clk 0:00:07]} 67... Ke3
{[%clk 0:00:07.6]} 68. Bb5 {[%clk 0:00:07.1]} 68... Ke4 {[%clk 0:00:07.5]} 69.
Bc4 {[%clk 0:00:07]} 69... Ke3 {[%clk 0:00:07.7]} 70. Kb6 {[%clk 0:00:06.9]}
70... Ke4 {[%clk 0:00:08.1]} 71. a5 {[%clk 0:00:07.3]} 71... Ke3 {[%clk
0:00:09]} 72. a6 {[%clk 0:00:07.6]} 72... Ke4 {[%clk 0:00:09.9]} 73. a7 {[%clk
0:00:07.9]} 73... Ke3 {[%clk 0:00:10.8]} 74. a8=Q {[%clk 0:00:07.9]} 74... Kf2
{[%clk 0:00:11.4]} 75. Qe5 {[%clk 0:00:05.1]} 75... Kg1 {[%clk 0:00:06.8]} 76.
Qg8+ {[%clk 0:00:05.5]} 76... Kf2 {[%clk 0:00:07.2]} 77. Qgg3# {[%clk
0:00:05.3]} 1-0

[Event "Late-Titled-Tuesday-Blitz-May-14-2024"]
[Site "Chess.com"]
[Date "2024.05.14"]
[Round "3"]
[White "DominguezOnYoutube"]
[Black "lamomiajunior"]
[Result "0-1"]
[WhiteElo "3012"]
[BlackElo "2789"]
[TimeControl "180+1"]
[EndTime "14:30:55 PDT"]
[Termination "lamomiajunior won by checkmate"]

1. e4 {[%clk 0:03:00.9]} 1... c5 {[%clk 0:02:59.9]} 2. Nf3 {[%clk 0:03:00.2]}
2... d6 {[%clk 0:03:00.3]} 3. d4 {[%clk 0:03:00]} 3... cxd4 {[%clk 0:03:01.2]}
4. Nxd4 {[%clk 0:02:59.9]} 4... Nf6 {[%clk 0:03:01.8]} 5. Nc3 {[%clk 0:02:59.8]}
5... a6 {[%clk 0:03:02.4]} 6. Be3 {[%clk 0:02:58.8]} 6... e6 {[%clk 0:03:00.5]}
7. a3 {[%clk 0:02:57.3]} 7... h5 {[%clk 0:02:57]} 8. f4 {[%clk 0:02:52.9]} 8...
Nc6 {[%clk 0:02:52.4]} 9. Bd3 {[%clk 0:02:28.5]} 9... d5 {[%clk 0:02:49.1]} 10.
e5 {[%clk 0:02:24.6]} 10... Ng4 {[%clk 0:02:48.7]} 11. Bg1 {[%clk 0:02:23.8]}
11... g6 {[%clk 0:02:45]} 12. Qf3 {[%clk 0:01:55.6]} 12... Bd7 {[%clk
0:02:40.7]} 13. O-O-O {[%clk 0:01:29]} 13... Rc8 {[%clk 0:02:39.5]} 14. Kb1
{[%clk 0:01:26.1]} 14... Na5 {[%clk 0:02:35.3]} 15. Nce2 {[%clk 0:01:15.4]}
15... Nc4 {[%clk 0:02:35.2]} 16. Bxc4 {[%clk 0:01:13.4]} 16... Rxc4 {[%clk
0:02:35.1]} 17. h3 {[%clk 0:01:13.2]} 17... Nh6 {[%clk 0:02:34.5]} 18. g4 {[%clk
0:01:12.9]} 18... Bg7 {[%clk 0:02:31.3]} 19. Be3 {[%clk 0:01:10.4]} 19... b5
{[%clk 0:02:26.9]} 20. Bc1 {[%clk 0:01:07.5]} 20... b4 {[%clk 0:02:25.5]} 21. b3
{[%clk 0:01:07.1]} 21... Rc8 {[%clk 0:02:24.1]} 22. a4 {[%clk 0:01:02.7]} 22...
Qc7 {[%clk 0:02:18.3]} 23. Bb2 {[%clk 0:00:59.8]} 23... Ng8 {[%clk 0:02:08.3]}
24. Qd3 {[%clk 0:00:53.7]} 24... Ne7 {[%clk 0:02:01]} 25. Ng3 {[%clk 0:00:53]}
25... h4 {[%clk 0:01:52.4]} 26. Nge2 {[%clk 0:00:52.5]} 26... a5 {[%clk
0:01:52.1]} 27. Rhf1 {[%clk 0:00:49.4]} 27... g5 {[%clk 0:01:22]} 28. f5 {[%clk
0:00:31]} 28... Bxe5 {[%clk 0:01:20]} 29. fxe6 {[%clk 0:00:30]} 29... fxe6
{[%clk 0:01:18.3]} 30. Ng1 {[%clk 0:00:24.3]} 30... Bf4 {[%clk 0:01:16.9]} 31.
Nxe6 {[%clk 0:00:20.9]} 31... Bxe6 {[%clk 0:01:11.4]} 32. Bxh8 {[%clk
0:00:21.4]} 32... d4 {[%clk 0:01:00.7]} 33. Ne2 {[%clk 0:00:17.9]} 33... Nd5
{[%clk 0:00:54]} 34. Bxd4 {[%clk 0:00:15.3]} 34... Qf7 {[%clk 0:00:48.1]} 35.
Nxf4 {[%clk 0:00:13.9]} 35... Nxf4 {[%clk 0:00:48.3]} 36. Qb5+ {[%clk
0:00:13.5]} 36... Qd7 {[%clk 0:00:34.5]} 37. Qxg5 {[%clk 0:00:11.7]} 37... Nd5
{[%clk 0:00:31.9]} 38. Qg6+ {[%clk 0:00:09.4]} 38... Kd8 {[%clk 0:00:32.4]} 39.
Bb6+ {[%clk 0:00:07.9]} 39... Ke7 {[%clk 0:00:31.1]} 40. Qg7+ {[%clk 0:00:05.2]}
40... Kd6 {[%clk 0:00:30.6]} 41. Qxd7+ {[%clk 0:00:05]} 41... Bxd7 {[%clk
0:00:30.9]} 42. Bxa5 {[%clk 0:00:05.1]} 42... Kc5 {[%clk 0:00:30.7]} 43. Rxd5+
{[%clk 0:00:04.9]} 43... Kxd5 {[%clk 0:00:31.6]} 44. Bxb4 {[%clk 0:00:05]} 44...
Re8 {[%clk 0:00:30.2]} 45. Rd1+ {[%clk 0:00:03.3]} 45... Kc6 {[%clk 0:00:30.5]}
46. Be1 {[%clk 0:00:03.4]} 46... Re3 {[%clk 0:00:29.9]} 47. Bxh4 {[%clk
0:00:02.7]} 47... Rxh3 {[%clk 0:00:30.4]} 48. Bf6 {[%clk 0:00:02.8]} 48... Bxg4
{[%clk 0:00:30.5]} 49. Bb2 {[%clk 0:00:02.8]} 49... Bxd1 {[%clk 0:00:30.1]} 50.
Kc1 {[%clk 0:00:02]} 50... Rh1 {[%clk 0:00:29.2]} 51. Kd2 {[%clk 0:00:01.9]}
51... Bf3 {[%clk 0:00:29.4]} 52. Bd4 {[%clk 0:00:01.8]} 52... Rh2+ {[%clk
0:00:29.1]} 53. Ke3 {[%clk 0:00:01.4]} 53... Bd1 {[%clk 0:00:29]} 54. c3 {[%clk
0:00:01.8]} 54... Bxb3 {[%clk 0:00:28.9]} 55. a5 {[%clk 0:00:02.7]} 55... Bc4
{[%clk 0:00:29]} 56. Bb6 {[%clk 0:00:03.6]} 56... Re2+ {[%clk 0:00:28.7]} 57.
Kd4 {[%clk 0:00:04]} 57... Ba6 {[%clk 0:00:27.8]} 58. c4 {[%clk 0:00:04.9]}
58... Rc2 {[%clk 0:00:27]} 59. c5 {[%clk 0:00:05.2]} 59... Rc4+ {[%clk
0:00:27.5]} 60. Ke5 {[%clk 0:00:05.3]} 60... Rh4 {[%clk 0:00:27]} 61. Kf5 {[%clk
0:00:05.6]} 61... Bc8+ {[%clk 0:00:27]} 62. Kg5 {[%clk 0:00:06.5]} 62... Ra4
{[%clk 0:00:26.8]} 63. Kf6 {[%clk 0:00:07.4]} 63... Kd5 {[%clk 0:00:27.7]} 64.
Kf7 {[%clk 0:00:07.5]} 64... Bb7 {[%clk 0:00:28.1]} 65. Ke7 {[%clk 0:00:08.1]}
65... Bc6 {[%clk 0:00:29]} 66. Kd8 {[%clk 0:00:08.2]} 66... Bb5 {[%clk
0:00:28.4]} 67. Kc7 {[%clk 0:00:08.3]} 67... Rg4 {[%clk 0:00:27.1]} 68. Kd8
{[%clk 0:00:08.5]} 68... Rg7 {[%clk 0:00:26.8]} 69. Kc8 {[%clk 0:00:08.6]} 69...
Kc6 {[%clk 0:00:26.8]} 70. Kd8 {[%clk 0:00:08.9]} 70... Bc4 {[%clk 0:00:24]} 71.
Ke8 {[%clk 0:00:08.4]} 71... Kd5 {[%clk 0:00:20.7]} 72. Kf8 {[%clk 0:00:07.9]}
72... Rh7 {[%clk 0:00:18.8]} 73. Ke8 {[%clk 0:00:07.9]} 73... Bb5+ {[%clk
0:00:17.9]} 74. Kf8 {[%clk 0:00:07.7]} 74... Ke6 {[%clk 0:00:17.4]} 75. Kg8
{[%clk 0:00:07.8]} 75... Rd7 {[%clk 0:00:16.8]} 76. Kf8 {[%clk 0:00:07.8]} 76...
Rf7+ {[%clk 0:00:14.6]} 77. Kg8 {[%clk 0:00:07.9]} 77... Kf6 {[%clk 0:00:14.9]}
78. Bd8+ {[%clk 0:00:06.4]} 78... Kg6 {[%clk 0:00:15.2]} 79. Bb6 {[%clk
0:00:05.9]} 79... Re7 {[%clk 0:00:14.5]} 80. Kf8 {[%clk 0:00:05]} 80... Re8#
{[%clk 0:00:15.1]} 0-1

[Event "Late-Titled-Tuesday-Blitz-May-14-2024"]
[Site "Chess.com"]
[Date "2024.05.14"]
[Round "3"]
[White "DreamsAreFake"]
[Black "Rud_Makarian"]
[Result "1/2-1/2"]
[WhiteElo "2766"]
[BlackElo "2952"]
[TimeControl "180+1"]
[EndTime "14:30:57 PDT"]
[Termination "Game drawn by agreement"]

1. Nf3 {[%clk 0:03:00.9]} 1... Nf6 {[%clk 0:03:00.2]} 2. g3 {[%clk 0:03:00.8]}
2... d5 {[%clk 0:02:57.4]} 3. Bg2 {[%clk 0:03:01.1]} 3... e6 {[%clk 0:02:57.8]}
4. O-O {[%clk 0:03:01.6]} 4... Be7 {[%clk 0:02:58.5]} 5. b3 {[%clk 0:02:58.8]}
5... O-O {[%clk 0:02:58.9]} 6. Bb2 {[%clk 0:02:59.5]} 6... c6 {[%clk 0:02:59.6]}
7. d3 {[%clk 0:02:59]} 7... a5 {[%clk 0:02:58]} 8. Nbd2 {[%clk 0:02:57.6]} 8...
b5 {[%clk 0:02:57.8]} 9. c4 {[%clk 0:02:57.8]} 9... Bb7 {[%clk 0:02:56.4]} 10.
Qc2 {[%clk 0:02:56.9]} 10... Nbd7 {[%clk 0:02:56.7]} 11. e4 {[%clk 0:02:56.7]}
11... Qb6 {[%clk 0:02:53.2]} 12. h3 {[%clk 0:02:46.3]} 12... h6 {[%clk
0:02:46.6]} 13. Ne5 {[%clk 0:02:41.3]} 13... Nxe5 {[%clk 0:02:43.6]} 14. Bxe5
{[%clk 0:02:42.2]} 14... Rfd8 {[%clk 0:02:41.8]} 15. d4 {[%clk 0:02:28.1]} 15...
c5 {[%clk 0:02:26.7]} 16. exd5 {[%clk 0:02:11.3]} 16... exd5 {[%clk 0:02:24.5]}
17. cxb5 {[%clk 0:02:04.7]} 17... Qxb5 {[%clk 0:01:54.3]} 18. dxc5 {[%clk
0:02:03]} 18... Rac8 {[%clk 0:01:52.2]} 19. Rac1 {[%clk 0:02:01.8]} 19... Rxc5
{[%clk 0:01:50.1]} 20. Qb2 {[%clk 0:02:02.3]} 20... Rdc8 {[%clk 0:01:48.7]} 21.
Nf3 {[%clk 0:01:59.5]} 21... Qd7 {[%clk 0:01:32.9]} 22. Bd4 {[%clk 0:01:54.9]}
22... Rxc1 {[%clk 0:01:31.4]} 23. Rxc1 {[%clk 0:01:55.8]} 23... Rxc1+ {[%clk
0:01:30.5]} 24. Qxc1 {[%clk 0:01:56.7]} 24... Ne4 {[%clk 0:01:30.7]} 25. Ne5
{[%clk 0:01:54.5]} 25... Qd8 {[%clk 0:01:28.8]} 26. Nd3 {[%clk 0:01:53.5]} 26...
Bd6 {[%clk 0:01:23.7]} 27. Qe3 {[%clk 0:01:36.1]} 27... Ba6 {[%clk 0:01:19.4]}
28. Nf4 {[%clk 0:01:31.4]} 28... Bxf4 {[%clk 0:00:49.6]} 29. Qxf4 {[%clk
0:01:32.3]} 29... Bb7 {[%clk 0:00:48.2]} 30. Qe5 {[%clk 0:01:28]} 30... Nf6
{[%clk 0:00:48]} 31. Bc3 {[%clk 0:01:22.3]} 31... Bc6 {[%clk 0:00:46.3]} 32. Qd4
{[%clk 0:01:21.7]} 32... Qa8 {[%clk 0:00:38.9]} 33. a4 {[%clk 0:01:19.8]} 33...
Qb7 {[%clk 0:00:35.1]} 34. Qc5 {[%clk 0:01:12.5]} 34... Ne4 {[%clk 0:00:29.7]}
35. Bxe4 {[%clk 0:01:07.4]} 35... dxe4 {[%clk 0:00:30.6]} 36. Bxa5 {[%clk
0:01:08.1]} 36... e3 {[%clk 0:00:22.1]} 37. Qxe3 {[%clk 0:01:06.8]} 37... Qd7
{[%clk 0:00:22.4]} 38. Be1 {[%clk 0:00:47.9]} 38... Qxh3 {[%clk 0:00:20]} 39. f3
{[%clk 0:00:48.3]} 39... Qf5 {[%clk 0:00:19.1]} 40. Kf2 {[%clk 0:00:44.3]} 40...
Qc2+ {[%clk 0:00:19.4]} 41. Bd2 {[%clk 0:00:42.2]} 41... Qd1 {[%clk 0:00:17.7]}
42. g4 {[%clk 0:00:28.1]} 42... Qb1 {[%clk 0:00:16]} 43. Qc3 {[%clk 0:00:25.2]}
43... Qg6 {[%clk 0:00:15.1]} 44. a5 {[%clk 0:00:22.9]} 44... Qe6 {[%clk
0:00:13.1]} 45. b4 {[%clk 0:00:20.4]} 45... Qd5 {[%clk 0:00:13.2]} 46. Qe3
{[%clk 0:00:18]} 46... f6 {[%clk 0:00:11.2]} 47. Be1 {[%clk 0:00:17.3]} 47...
Kh8 {[%clk 0:00:10.7]} 48. Qc3 {[%clk 0:00:16.6]} 48... Kh7 {[%clk 0:00:09.9]}
49. a6 {[%clk 0:00:16.9]} 49... Kg8 {[%clk 0:00:09.6]} 50. a7 {[%clk 0:00:17.2]}
50... Kh7 {[%clk 0:00:09.2]} 51. Qe3 {[%clk 0:00:17.6]} 51... Kh8 {[%clk
0:00:08.7]} 52. Bc3 {[%clk 0:00:17.5]} 52... Kh7 {[%clk 0:00:08.2]} 53. Qe4+
{[%clk 0:00:15.9]} 53... Qxe4 {[%clk 0:00:08.3]} 54. fxe4 {[%clk 0:00:16.8]}
54... Kg6 {[%clk 0:00:08.3]} 55. Ke3 {[%clk 0:00:17.7]} 55... Kf7 {[%clk
0:00:07.9]} 56. Kd4 {[%clk 0:00:18.3]} 56... Ke6 {[%clk 0:00:08.6]} 57. Kc5
{[%clk 0:00:18.3]} 57... Kd7 {[%clk 0:00:09.2]} 58. e5 {[%clk 0:00:18]} 58...
fxe5 {[%clk 0:00:08.3]} 59. Bxe5 {[%clk 0:00:18.9]} 59... g6 {[%clk 0:00:09]}
60. b5 {[%clk 0:00:14.1]} 60... Bf3 {[%clk 0:00:08.4]} 61. Bg7 {[%clk 0:00:08]}
61... h5 {[%clk 0:00:08.2]} 62. g5 {[%clk 0:00:08.7]} 62... Kc8 {[%clk
0:00:07.8]} 63. Kd6 {[%clk 0:00:05]} 63... Kb7 {[%clk 0:00:07.4]} 64. Bd4 {[%clk
0:00:05.7]} 64... Bg4 {[%clk 0:00:06.2]} 65. Ke5 {[%clk 0:00:05]} 65... Bf5
{[%clk 0:00:06.5]} 66. Kf6 {[%clk 0:00:05.6]} 66... h4 {[%clk 0:00:06.1]} 67. b6
{[%clk 0:00:06.1]} 67... h3 {[%clk 0:00:06.5]} 68. Bg1 {[%clk 0:00:06.8]} 68...
Be4 {[%clk 0:00:06.4]} 69. Bh2 {[%clk 0:00:07]} 69... Bf5 {[%clk 0:00:06.9]} 70.
Ke5 {[%clk 0:00:07.3]} 70... Ka8 {[%clk 0:00:07]} 71. Kd6 {[%clk 0:00:07.7]}
71... Kb7 {[%clk 0:00:07.5]} 72. Ke7 {[%clk 0:00:06.2]} 72... Be4 {[%clk
0:00:07]} 73. Kd8 {[%clk 0:00:06.4]} 1/2-1/2